bitfinex-derivatives/quotes_SOLF0:USTF0_20250823
["timestamp","ask_amount","ask_price","bid_price","bid_amount"]
[1755978567170,123.8781,204.22,204.19,4.59863647]
[1755978567367,123.8781,204.22,204.2,4.59863647]
[1755978567569,118.98,204.22,204.21,4.59863647]
[1755978567768,8.24233478,204.27,204.21,7.23863647]
[1755978568071,3.22587274,204.25,204.22,7.23863647]
[1755978568260,118.98,204.24,204.23,4.59863647]
[1755978576876,118.98,204.24,204.23,4.60043337]
[1755978586685,118.98,204.24,204.18,8.12467274]
[1755978586883,118.98,204.24,204.2,2.59]
[1755978587183,118.98,204.24,204.21,7.20820569]
[1755978587381,118.98,204.24,204.22,4.61820569]
[1755978587582,118.98,204.24,204.23,4.61820569]
[1755978590487,118.98,204.24,204.23,4.61835433]
[1755978591886,3.22587274,204.28,204.23,4.61835433]
[1755978592190,118.92,204.29,204.24,7.84422707]
[1755978592383,118.92,204.29,204.26,2.59]
[1755978592590,118.92,204.29,204.27,7.20835433]
[1755978592890,118.92,204.29,204.27,2.59]
[1755978593087,118.92,204.29,204.28,4.61719417]
[1755978596491,118.92,204.29,204.27,2.59]
[1755978596789,118.92,204.29,204.28,4.61500916]
[1755978597087,118.92,204.29,204.27,2.59]
[1755978597390,118.92,204.29,204.28,4.61500916]
[1755978600497,118.92,204.29,204.21,3.22587274]
[1755978600687,3.22587274,204.28,204.22,4.6143973]
[1755978600892,3.22587274,204.28,204.23,4.6143973]
[1755978601093,4.8967,204.28,204.24,4.6143973]
[1755978601298,4.8967,204.28,204.21,5.81587274]
[1755978601299,122.14587274,204.29,204.25,4.6143973]
[1755978601593,122.14587274,204.29,204.23,2.59]
[1755978601594,122.14587274,204.29,204.26,4.6143973]
[1755978601793,3.22587274,204.29,204.23,2.59]
[1755978601996,118.9,204.28,204.24,4.6144367]
[1755978602300,118.9,204.28,204.25,4.6144367]
[1755978602594,118.9,204.28,204.26,4.6144367]
[1755978602796,118.9,204.28,204.27,4.6144367]
[1755978603097,118.9,204.28,204.25,2.59]
[1755978603300,118.9,204.28,204.26,4.61428278]
[1755978603493,118.9,204.28,204.27,4.61430485]
[1755978603688,118.9,204.28,204.27,4.61417048]
[1755978604190,118.88,204.29,204.27,7.35417048]
[1755978604387,118.88,204.29,204.28,7.35417048]
[1755978604593,20.77647841,204.39,204.28,7.35417048]
[1755978604793,3.22587274,204.35,204.29,4.61365016]
[1755978604988,118.88,204.34,204.3,4.61365016]
[1755978605193,118.88,204.34,204.31,4.61365016]
[1755978605399,118.88,204.34,204.28,2.74]
[1755978605594,118.88,204.34,204.29,4.61197357]
[1755978605798,118.88,204.34,204.3,4.61197357]
[1755978605999,118.88,204.34,204.28,2.74]
[1755978606292,118.88,204.34,204.29,4.61197447]
[1755978606499,118.88,204.34,204.3,4.61197447]
[1755978606696,118.88,204.34,204.28,2.74]
[1755978606897,8.12097274,204.35,204.29,4.61114206]
[1755978607205,118.88,204.34,204.3,4.61032287]
[1755978607405,118.88,204.34,204.28,2.74]
[1755978607698,118.88,204.34,204.29,7.35047535]
[1755978607897,118.88,204.34,204.3,4.61047535]
[1755978608197,118.88,204.34,204.29,2.74]
[1755978608399,118.88,204.34,204.3,4.60974105]
[1755978608599,118.88,204.34,204.29,2.74]
[1755978608801,118.88,204.34,204.3,7.34974105]
[1755978608994,118.88,204.34,204.28,2.74]
[1755978609196,118.88,204.34,204.29,7.33890268]
[1755978609395,118.88,204.34,204.3,7.33890268]
[1755978609595,118.88,204.34,204.3,2.74]
[1755978610199,118.88,204.34,204.27,5.96587274]
[1755978610402,118.88,204.34,204.28,4.59785626]
[1755978610597,118.88,204.34,204.29,7.33785626]
[1755978610804,118.88,204.34,204.3,4.59785626]
[1755978611100,118.88,204.34,204.29,2.74]
[1755978611296,118.88,204.34,204.3,4.5972146]
[1755978611496,118.88,204.34,204.29,2.74]
[1755978611703,118.88,204.34,204.3,4.59737928]
[1755978611899,118.88,204.34,204.29,2.74]
[1755978612100,118.88,204.34,204.3,4.59737928]
[1755978612295,118.88,204.34,204.29,2.74]
[1755978612498,118.88,204.34,204.3,4.59701915]
[1755978612701,118.88,204.34,204.29,2.74]
[1755978612898,118.88,204.34,204.3,4.59701915]
[1755978613203,118.88,204.34,204.29,2.74]
[1755978613405,123.7753,204.34,204.29,2.74]
[1755978613808,123.7753,204.34,204.3,4.59632221]
[1755978614104,123.7753,204.34,204.29,2.74]
[1755978615704,123.7753,204.34,204.3,4.59536749]
[1755978616005,123.7753,204.34,204.29,2.74]
[1755978619202,123.7753,204.34,204.3,4.5944941]
[1755978619399,123.7753,204.34,204.29,2.74]
[1755978619599,123.7753,204.34,204.3,4.5944941]
[1755978619801,123.7753,204.34,204.29,2.74]
[1755978620002,123.7753,204.34,204.3,4.5944941]
[1755978620203,123.7753,204.34,204.29,2.74]
[1755978624209,123.7753,204.34,204.28,3.22587274]
[1755978624412,123.7753,204.34,204.28,5.96587274]
[1755978625715,123.7753,204.34,204.29,7.33574357]
[1755978626015,123.7753,204.34,204.29,2.74]
[1755978629721,123.7753,204.34,204.3,2.74]
[1755978631622,123.7753,204.34,204.28,3.22587274]
[1755978631823,123.7753,204.34,204.29,4.59917987]
[1755978632126,123.7753,204.34,204.29,2.74]
[1755978633027,123.7753,204.34,204.3,4.59983351]
[1755978633221,123.7753,204.34,204.29,2.74]
[1755978633426,123.7753,204.34,204.3,4.60081654]
[1755978633624,118.88,204.34,204.31,4.60068338]
[1755978633822,45.11982069,204.39,204.32,3.22587274]
[1755978634023,24.4659,204.43,204.32,3.22587274]
[1755978634024,118.82,204.4,204.34,2.55]
[1755978634328,123.7139,204.4,204.35,4.60042875]
[1755978634628,123.7139,204.4,204.34,2.55]
[1755978634818,123.7139,204.4,204.35,4.59946918]
[1755978635023,123.7139,204.4,204.34,2.55]
[1755978635229,123.7139,204.4,204.35,4.59869135]
[1755978635424,123.7139,204.4,204.34,2.55]
[1755978635730,123.7139,204.4,204.35,4.59960141]
[1755978636022,123.7139,204.4,204.34,2.55]
[1755978636323,4.8932,204.43,204.36,4.8944]
[1755978636527,122.02587274,204.43,204.37,4.59929413]
[1755978636727,122.02587274,204.43,204.35,5.77587274]
[1755978636928,122.02587274,204.43,204.36,4.59928655]
[1755978637130,122.02587274,204.43,204.37,4.59928655]
[1755978637321,122.02587274,204.43,204.35,5.77587274]
[1755978637526,4.8936,204.41,204.36,7.14799234]
[1755978637825,4.8936,204.41,204.37,4.59799234]
[1755978638025,3.22587274,204.45,204.38,7.14799234]
[1755978638224,3.22587274,204.45,204.39,4.59799234]
[1755978638526,3.22587274,204.45,204.38,5.77587274]
[1755978638731,3.22587274,204.45,204.39,4.59432296]
[1755978638924,3.22587274,204.45,204.4,4.59432296]
[1755978639125,3.22587274,204.45,204.38,5.77587274]
[1755978639324,3.22587274,204.45,204.39,4.57486107]
[1755978639519,8.11847274,204.45,204.38,5.77587274]
[1755978639720,8.11847274,204.45,204.39,4.57486107]
[1755978639928,8.11847274,204.45,204.38,5.77587274]
[1755978640129,8.11847274,204.45,204.39,4.57486107]
[1755978640330,8.11847274,204.45,204.38,5.77587274]
[1755978640524,8.11847274,204.45,204.39,4.57304322]
[1755978640828,8.11847274,204.45,204.38,5.77587274]
[1755978641030,8.11847274,204.45,204.39,4.57304322]
[1755978641329,8.11847274,204.45,204.38,5.77587274]
[1755978641528,8.11847274,204.45,204.39,4.57152588]
[1755978641529,4.8929,204.44,204.39,4.57152588]
[1755978641830,4.8929,204.44,204.39,2.55]
[1755978642123,4.8929,204.44,204.38,2.55]
[1755978643926,4.8929,204.44,204.39,4.56920474]
[1755978644228,3.22587274,204.43,204.35,3.22587274]
[1755978644428,3.22587274,204.41,204.36,4.56857468]
[1755978644625,3.22587274,204.41,204.35,3.22587274]
[1755978644830,3.22587274,204.41,204.36,7.11857468]
[1755978645030,3.22587274,204.41,204.37,4.56857468]
[1755978645231,3.22587274,204.41,204.37,2.55]
[1755978645632,8.11957274,204.41,204.37,2.55]
[1755978647633,4.8937,204.41,204.37,2.55]
[1755978648828,4.8937,204.41,204.38,4.56809571]
[1755978649023,4.8937,204.41,204.37,2.55]
[1755978649230,4.8937,204.41,204.38,4.56810074]
[1755978649426,4.8937,204.41,204.37,2.55]
[1755978649634,4.8937,204.41,204.38,4.56810074]
[1755978649935,4.8937,204.41,204.37,2.55]
[1755978650131,4.8937,204.41,204.38,4.56810074]
[1755978650328,4.8937,204.41,204.37,2.55]
[1755978650525,4.8937,204.41,204.38,4.56737598]
[1755978650725,4.8937,204.41,204.37,2.55]
[1755978651034,8.11957274,204.41,204.38,4.56737598]
[1755978651239,3.22587274,204.39,204.33,5.77587274]
[1755978651436,3.22587274,204.39,204.34,7.11795786]
[1755978651635,3.22587274,204.39,204.35,4.56795786]
[1755978651836,3.22587274,204.39,204.33,3.22587274]
[1755978652131,3.22587274,204.39,204.35,2.55]
[1755978652539,8.11997274,204.39,204.36,4.56820281]
[1755978652839,8.11997274,204.39,204.35,2.55]
[1755978653042,8.11997274,204.39,204.36,4.5679386]
[1755978653340,8.11997274,204.39,204.37,4.56823696]
[1755978653640,8.11997274,204.39,204.35,2.55]
[1755978653845,8.11997274,204.39,204.36,4.56817091]
[1755978654046,8.11997274,204.39,204.35,2.55]
[1755978656537,8.11997274,204.39,204.31,3.22587274]
[1755978656741,8.11997274,204.39,204.35,2.55]
[1755978657743,8.11997274,204.39,204.36,2.55]
[1755978665343,8.11997274,204.39,204.37,4.57150544]
[1755978665645,8.11997274,204.39,204.33,3.22587274]
[1755978665841,8.11997274,204.39,204.35,2.67]
[1755978666041,8.11997274,204.39,204.36,7.24150544]
[1755978666240,8.11997274,204.39,204.37,7.24150544]
[1755978666447,8.11997274,204.39,204.37,2.67]
[1755978667049,8.11997274,204.39,204.38,4.57208495]
[1755978667344,8.11997274,204.39,204.37,2.67]
[1755978668250,8.11997274,204.39,204.34,2.67]
[1755978668456,8.11997274,204.39,204.35,7.24388962]
[1755978668642,8.11997274,204.39,204.36,4.57388962]
[1755978668946,8.11997274,204.39,204.37,4.57388962]
[1755978669147,8.11997274,204.39,204.38,4.57608962]
[1755978669448,8.11997274,204.39,204.33,5.89587274]
[1755978669746,8.11997274,204.39,204.34,4.57646301]
[1755978669947,8.11997274,204.39,204.35,7.24646301]
[1755978670147,8.11997274,204.39,204.36,7.24646301]
[1755978670349,8.11997274,204.39,204.37,4.57646301]
[1755978670544,8.11997274,204.39,204.36,2.67]
[1755978670742,8.11997274,204.39,204.37,4.57743654]
[1755978671043,8.11997274,204.39,204.36,2.67]
[1755978671244,8.11997274,204.39,204.37,4.57798393]
[1755978671448,8.11997274,204.39,204.36,2.67]
[1755978671648,8.11997274,204.39,204.37,4.57823136]
[1755978671850,8.11997274,204.39,204.36,2.67]
[1755978672052,8.11997274,204.39,204.37,4.57823136]
[1755978672246,8.11997274,204.39,204.38,4.57823136]
[1755978672450,8.11997274,204.39,204.38,4.57924213]
[1755978673051,4.8941,204.39,204.38,4.57924213]
[1755978673252,4.8941,204.39,204.36,2.67]
[1755978673552,4.8941,204.39,204.37,4.58036106]
[1755978673852,4.8941,204.39,204.36,2.67]
[1755978674050,4.8941,204.39,204.37,4.58036106]
[1755978674250,4.8941,204.39,204.36,2.67]
[1755978674452,4.8941,204.39,204.37,4.58167505]
[1755978674649,4.8941,204.39,204.36,2.67]
[1755978674852,4.8943,204.38,204.37,4.5816088]
[1755978676051,4.8943,204.38,204.33,5.89587274]
[1755978676351,4.8943,204.38,204.35,2.67]
[1755978676556,4.8943,204.38,204.36,4.58459314]
[1755978676756,4.8943,204.38,204.37,4.58459314]
[1755978678355,3.22587274,204.38,204.3,2.67]
[1755978678556,3.22587274,204.34,204.31,4.58932597]
[1755978678857,3.22587274,204.34,204.3,2.67]
[1755978679251,4.8955,204.33,204.3,2.67]
[1755978679655,3.22587274,204.34,204.27,2.67]
[1755978679859,3.22587274,204.34,204.29,2.67]
[1755978680157,3.22587274,204.34,204.28,3.22587274]
[1755978680359,3.22587274,204.34,204.32,2.67]
[1755978682152,3.22587274,204.34,204.27,3.22587274]
[1755978682357,3.22587274,204.34,204.31,2.67]
[1755978683761,24.4676,204.41,204.31,2.67]
[1755978683957,3.22587274,204.35,204.28,2.67]
[1755978685160,3.22587274,204.38,204.32,2.67]
[1755978686660,4.8942,204.38,204.32,2.67]
[1755978689456,8.11957274,204.4,204.34,2.67]
[1755978690454,8.11957274,204.4,204.35,4.49674499]
[1755978690660,8.11957274,204.4,204.36,4.49674499]
[1755978690858,8.11957274,204.4,204.37,4.49674499]
[1755978691057,8.11957274,204.4,204.38,4.49674499]
[1755978691357,8.11957274,204.4,204.36,2.67]
[1755978691561,8.11957274,204.4,204.37,4.49703355]
[1755978691750,8.11957274,204.4,204.38,4.49703355]
[1755978691956,8.11957274,204.4,204.36,2.67]
[1755978692262,8.11957274,204.4,204.37,4.49696719]
[1755978692456,8.11957274,204.4,204.38,4.49696719]
[1755978692651,8.11957274,204.4,204.36,2.67]
[1755978692955,8.11957274,204.4,204.37,4.49724107]
[1755978693159,8.11957274,204.4,204.36,2.67]
[1755978693460,8.11957274,204.4,204.37,4.49754754]
[1755978693655,8.11957274,204.4,204.36,2.67]
[1755978693852,8.11957274,204.4,204.37,4.49754754]
[1755978694058,8.11957274,204.4,204.36,2.67]
[1755978694257,8.11957274,204.4,204.37,4.49793978]
[1755978694453,8.11957274,204.4,204.36,2.67]
[1755978694657,8.11957274,204.4,204.37,4.49803051]
[1755978694955,8.11957274,204.4,204.36,2.67]
[1755978695259,8.11957274,204.4,204.37,4.49803051]
[1755978695460,8.11957274,204.4,204.36,2.67]
[1755978695661,8.11957274,204.4,204.37,4.49875695]
[1755978695861,8.11957274,204.4,204.38,4.49875695]
[1755978696052,8.11957274,204.4,204.36,2.67]
[1755978696252,8.11957274,204.4,204.37,4.49907763]
[1755978696452,4.8941,204.39,204.38,4.49907763]
[1755978698660,4.8941,204.39,204.36,2.81]
[1755978698856,4.8941,204.39,204.37,4.49921918]
[1755978699161,4.8941,204.39,204.38,4.49921918]
[1755978702766,4.8941,204.39,204.38,4.50635363]
[1755978703266,4.8941,204.39,204.36,2.81]
[1755978703469,4.8941,204.39,204.37,4.50641157]
[1755978703667,4.8941,204.39,204.36,2.81]
[1755978703968,4.8941,204.39,204.37,4.50641157]
[1755978704167,4.8941,204.39,204.36,2.81]
[1755978704368,4.8941,204.39,204.37,4.50647229]
[1755978704567,4.8941,204.39,204.36,2.81]
[1755978704763,8.11997274,204.39,204.37,7.31647229]
[1755978705066,8.11997274,204.39,204.37,2.81]
[1755978705969,8.11997274,204.39,204.32,3.22587274]
[1755978706162,8.11997274,204.39,204.33,7.3165589]
[1755978706458,8.11997274,204.39,204.34,4.5065589]
[1755978706658,8.11997274,204.39,204.35,4.5065589]
[1755978706858,8.11997274,204.39,204.36,7.3165589]
[1755978707062,8.11997274,204.39,204.37,4.5065589]
[1755978707362,8.11997274,204.39,204.38,4.50670564]
[1755978709460,8.11997274,204.39,204.36,2.81]
[1755978709662,8.11997274,204.39,204.37,4.50679]
[1755978709860,8.11997274,204.39,204.38,4.50679]
[1755978710362,8.11997274,204.39,204.36,2.81]
[1755978710568,8.11997274,204.39,204.37,4.50700628]
[1755978710773,8.11997274,204.39,204.37,2.81]
[1755978712764,8.11997274,204.39,204.32,3.22587274]
[1755978712970,8.11997274,204.39,204.35,2.81]
[1755978713169,8.11997274,204.39,204.36,4.50720359]
[1755978713469,8.11997274,204.39,204.37,4.50720359]
[1755978713669,8.11997274,204.39,204.35,2.81]
[1755978713870,8.11997274,204.39,204.36,4.50751733]
[1755978714066,8.11997274,204.39,204.37,4.50751733]
[1755978714268,8.11997274,204.39,204.33,2.81]
[1755978714568,8.11997274,204.39,204.32,3.22587274]
[1755978714569,8.11997274,204.39,204.36,2.81]
[1755978714764,8.11997274,204.39,204.37,7.31770874]
[1755978714963,8.11997274,204.39,204.37,2.81]
[1755978715273,8.11997274,204.39,204.38,4.50750672]
[1755978716766,8.11997274,204.39,204.37,2.81]
[1755978717171,8.11997274,204.39,204.34,2.81]
[1755978717472,8.11997274,204.39,204.35,7.31770928]
[1755978717671,8.11997274,204.39,204.36,4.50770928]
[1755978717874,8.11997274,204.39,204.37,4.50770928]
[1755978718175,8.11997274,204.39,204.33,2.81]
[1755978718371,8.11997274,204.39,204.35,2.81]
[1755978718572,8.11997274,204.39,204.36,7.31783574]
[1755978718772,8.11997274,204.39,204.37,4.50783574]
[1755978718972,8.11997274,204.39,204.36,2.81]
[1755978719173,8.11997274,204.39,204.37,4.50788413]
[1755978719476,8.11997274,204.39,204.36,2.81]
[1755978719679,8.11997274,204.39,204.37,4.50799954]
[1755978719877,8.11997274,204.39,204.36,2.81]
[1755978720179,8.11997274,204.39,204.37,4.50799954]
[1755978720377,8.11997274,204.39,204.36,2.81]
[1755978720678,8.11997274,204.39,204.37,4.5081308]
[1755978720980,3.22587274,204.39,204.31,2.81]
[1755978721179,3.22587274,204.37,204.33,2.81]
[1755978721372,3.22587274,204.37,204.34,4.50822966]
[1755978721568,3.22587274,204.37,204.35,4.50824936]
[1755978721772,3.22587274,204.37,204.36,4.50824936]
[1755978721981,8.12037274,204.37,204.36,4.50824936]
[1755978722276,3.22587274,204.37,204.36,7.31824936]
[1755978722677,3.22587274,204.38,204.36,7.31824936]
[1755978722877,3.22587274,204.38,204.36,2.81]
[1755978723078,8.12017274,204.38,204.37,4.50823561]
[1755978731183,8.12017274,204.38,204.31,8.12157274]
[1755978731385,8.12017274,204.38,204.35,2.62]
[1755978731584,8.12017274,204.38,204.36,4.50835156]
[1755978731778,8.12017274,204.38,204.37,4.50835156]
[1755978735285,3.22587274,204.38,204.37,4.50835156]
[1755978735886,3.22587274,204.38,204.37,4.50820102]
[1755978741090,3.22587274,204.38,204.37,4.50799989]
[1755978741290,3.22587274,204.38,204.37,7.12799989]
[1755978744793,3.22587274,204.38,204.37,4.50799989]
[1755978748094,3.22587274,204.38,204.37,7.12799989]
[1755978750902,3.22587274,204.38,204.37,7.12819332]
[1755978757502,3.22587274,204.38,204.37,7.12820032]
[1755978761003,3.22587274,204.38,204.37,7.13948672]
[1755978763511,3.22587274,204.38,204.37,2.62]
[1755978765505,11.46806508,204.38,204.32,2.67]
[1755978765709,3.22587274,204.38,204.33,4.52063362]
[1755978765909,3.22587274,204.36,204.35,2.67]
[1755978766211,3.22587274,204.36,204.35,7.19063362]
[1755978770616,3.22587274,204.36,204.35,2.67]
[1755978770815,3.22587274,204.36,204.35,7.18930956]
[1755978771317,3.22587274,204.36,204.35,7.18928127]
[1755978771517,3.22587274,204.36,204.35,2.67]
[1755978772217,3.22587274,204.36,204.33,2.67]
[1755978772516,3.22587274,204.34,204.33,2.67]
[1755978772717,3.22587274,204.34,204.33,7.18889986]
[1755978774208,3.22587274,204.34,204.33,7.18850416]
[1755978777612,3.22587274,204.34,204.33,4.51850416]
[1755978780319,3.22587274,204.34,204.33,2.67]
[1755978781420,3.22587274,204.34,204.33,7.1849649]
[1755978782423,3.22587274,204.34,204.33,2.67]
[1755978782818,3.22587274,204.34,204.33,7.1847213]
[1755978783521,3.22587274,204.34,204.33,2.67]
[1755978783722,3.22587274,204.34,204.33,7.18431566]
[1755978784613,3.22587274,204.35,204.34,2.67]
[1755978784823,3.22587274,204.35,204.34,7.18389769]
[1755978785325,3.22587274,204.35,204.34,7.18353892]
[1755978789424,3.22587274,204.35,204.34,2.67]
[1755978789625,3.22587274,204.35,204.34,7.15551191]
[1755978792639,3.22587274,204.35,204.34,2.67]
[1755978792829,3.22587274,204.35,204.34,7.15547792]
[1755978793135,3.22587274,204.35,204.34,2.67]
[1755978795330,4.8945,204.37,204.29,4.8962]
[1755978795534,4.8945,204.37,204.35,2.67]
[1755978795726,4.8945,204.37,204.34,2.67]
[1755978796730,3.22587274,204.35,204.34,2.67]
[1755978803236,3.22587274,204.35,204.34,7.15623477]
[1755978803642,3.22587274,204.35,204.34,2.67]
[1755978804138,3.22587274,204.35,204.34,7.15667489]
[1755978804638,3.22587274,204.35,204.34,7.15709848]
[1755978809043,3.22587274,204.35,204.34,7.15880166]
[1755978813144,3.22587274,204.35,204.31,2.67]
[1755978813344,3.22587274,204.33,204.32,7.16089863]
[1755978814545,3.22587274,204.33,204.32,4.49089863]
[1755978814850,4.8962,204.3,204.28,2.59]
[1755978815044,3.22587274,204.29,204.28,2.59]
[1755978817445,3.22587274,204.3,204.28,2.59]
[1755978823260,3.22587274,204.3,204.23,3.22587274]
[1755978823559,3.22587274,204.28,204.26,2.59]
[1755978823762,3.22587274,204.28,204.22,2.59]
[1755978823952,3.22587274,204.26,204.22,2.59]
[1755978826752,3.22587274,204.26,204.24,2.59]
[1755978826963,3.22587274,204.26,204.25,7.00133273]
[1755978828064,3.22587274,204.26,204.25,7.00044698]
[1755978828562,3.22587274,204.26,204.25,2.59]
[1755978828756,3.22587274,204.26,204.25,6.99963133]
[1755978829264,3.22587274,204.26,204.25,2.59]
[1755978830962,3.22587274,204.29,204.25,6.99819388]
[1755978831263,3.22587274,204.29,204.25,2.59]
[1755978831464,4.8959,204.31,204.25,2.59]
[1755978831764,4.8959,204.31,204.27,2.59]
[1755978831765,3.22587274,204.29,204.27,2.59]
[1755978839164,3.22587274,204.29,204.22,4.8978]
[1755978839165,3.22587274,204.29,204.23,2.59]
[1755978839363,3.22587274,204.29,204.15,255.25943886]
[1755978839364,3.22587274,204.26,204.25,2.59]
[1755978839569,3.22587274,204.26,204.25,6.99772146]
[1755978841376,3.22587274,204.26,204.25,2.59]
[1755978847269,3.22587274,204.26,204.18,4.8988]
[1755978847463,3.22587274,204.26,204.2,2.8]
[1755978847668,3.22587274,204.26,204.22,2.8]
[1755978847868,3.22587274,204.26,204.24,2.8]
[1755978856275,3.22587274,204.26,204.25,4.41766459]
[1755978862683,3.22587274,204.26,204.25,7.21766459]
[1755978865585,3.22587274,204.26,204.25,7.33758245]
[1755978865885,3.22587274,204.26,204.25,2.8]
[1755978866185,3.22587274,204.26,204.25,7.33759477]
[1755978868887,3.22587274,204.28,204.26,2.8]
[1755978869186,3.22587274,204.28,204.27,7.33759477]
[1755978874991,3.22587274,204.28,204.27,2.8]
[1755978875189,3.22587274,204.28,204.27,7.33787531]
[1755978884707,3.22587274,204.28,204.27,7.33672519]
[1755978894313,3.22587274,204.28,204.27,2.8]
[1755978894611,3.22587274,204.28,204.27,7.33581528]
[1755978894907,3.22587274,204.28,204.27,2.8]
[1755978895105,3.22587274,204.28,204.27,7.33575785]
[1755978901212,3.22587274,204.28,204.27,4.53575785]
[1755978901619,3.22587274,204.28,204.24,2.79]
[1755978901819,3.22587274,204.25,204.24,2.79]
[1755978913620,3.22587274,204.25,204.24,7.27717863]
[1755978918732,3.22587274,204.25,204.24,7.27702781]
[1755978922127,3.22587274,204.25,204.24,7.27893209]
[1755978925538,5.02689195,204.26,204.24,7.27893209]
[1755978925740,5.02689195,204.26,204.25,7.18893209]
[1755978931436,5.02689195,204.26,204.25,2.7]
[1755978931643,5.02689195,204.26,204.25,7.18874384]
[1755978932341,5.02689195,204.26,204.25,7.18871502]
[1755978934036,4.8966,204.28,204.25,7.18871502]
[1755978934238,118.5,204.29,204.26,4.48871502]
[1755978934445,118.5,204.29,204.25,2.81]
[1755978934646,118.5,204.29,204.26,4.48916676]
[1755978934836,118.5,204.29,204.25,2.81]
[1755978935042,118.5,204.29,204.26,4.48917457]
[1755978935242,5.02689195,204.27,204.26,2.81]
[1755978935440,4.8956,204.32,204.26,7.29923988]
[1755978935640,4.8956,204.32,204.27,7.29923988]
[1755978935641,5.02689195,204.29,204.27,7.29923988]
[1755978935844,5.02689195,204.29,204.28,7.29923988]
[1755978936243,118.46,204.31,204.28,4.48923988]
[1755978936443,123.48689195,204.31,204.3,2.81]
[1755978936748,57.18700521,204.32,204.31,2.81]
[1755978936945,57.18700521,204.32,204.31,7.29923988]
[1755978937942,57.18700521,204.32,204.31,7.29248726]
[1755978939048,57.18700521,204.32,204.24,2.81]
[1755978939248,57.18700521,204.32,204.26,2.81]
[1755978939448,57.18700521,204.32,204.27,4.48140888]
[1755978939650,62.21389716,204.32,204.28,4.48140888]
[1755978939850,62.21389716,204.32,204.3,2.81]
[1755978940054,62.21389716,204.32,204.31,4.48140888]
[1755978941051,62.21389716,204.32,204.31,4.51380312]
[1755978941950,62.21389716,204.32,204.31,4.51289113]
[1755978942344,62.21389716,204.32,204.3,2.81]
[1755978945850,62.21389716,204.32,204.28,2.81]
[1755978946049,62.21389716,204.32,204.29,2.81]
[1755978950555,62.21389716,204.32,204.25,4.8971]
[1755978950755,62.21389716,204.32,204.3,2.81]
[1755978953257,62.21389716,204.32,204.28,2.81]
[1755978953458,62.21389716,204.32,204.29,7.31822925]
[1755978953657,62.21389716,204.32,204.29,2.81]
[1755978955756,62.21389716,204.32,204.25,4.8971]
[1755978955961,62.21389716,204.32,204.26,4.50723375]
[1755978956261,118.42,204.31,204.27,7.31723375]
[1755978956462,118.42,204.31,204.28,4.50723375]
[1755978956658,118.42,204.31,204.29,4.50723375]
[1755978956858,118.42,204.31,204.25,4.8971]
[1755978957060,118.42,204.31,204.28,2.81]
[1755978957261,118.42,204.31,204.29,4.50732396]
[1755978957561,118.42,204.31,204.28,2.81]
[1755978957763,118.42,204.31,204.29,4.50733677]
[1755978958062,118.42,204.31,204.28,2.81]
[1755978958256,118.42,204.31,204.29,4.50733677]
[1755978958457,118.42,204.31,204.28,2.81]
[1755978958657,118.42,204.31,204.29,4.50702915]
[1755978958855,118.42,204.31,204.28,2.81]
[1755978959061,118.42,204.31,204.29,4.50719439]
[1755978959360,118.42,204.31,204.28,2.81]
[1755978959562,118.42,204.31,204.29,4.50706362]
[1755978959768,118.42,204.31,204.28,2.81]
[1755978960061,118.42,204.31,204.29,4.5072257]
[1755978960257,118.42,204.31,204.28,2.81]
[1755978960464,118.42,204.31,204.29,4.50724426]
[1755978960665,118.42,204.31,204.28,2.81]
[1755978960964,118.42,204.31,204.29,4.50714509]
[1755978961163,118.42,204.31,204.28,2.81]
[1755978961366,118.42,204.31,204.29,4.50707901]
[1755978961563,118.42,204.31,204.28,2.81]
[1755978961764,118.42,204.31,204.29,4.50711254]
[1755978962064,118.42,204.31,204.28,2.81]
[1755978962266,118.42,204.31,204.29,4.50719219]
[1755978962563,118.42,204.31,204.28,2.81]
[1755978962766,118.42,204.31,204.29,4.50731406]
[1755978962963,118.42,204.31,204.28,2.81]
[1755978963264,118.42,204.31,204.29,4.50764456]